fUSD/lending_fUSD_20250313
["ID","MTS","AMOUNT","RATE_DAILY","PERIOD"]
[356114388,1741909955451,-895.24,0.00026303,3]
[356114389,1741909955464,-500.0,0.00026303,3]
[356114390,1741909955473,-500.0,0.00026303,3]
[356114391,1741909955483,-500.0,0.00026303,3]
[356114392,1741909955492,-500.0,0.00026303,3]
[356114393,1741909955503,-500.0,0.00026303,3]
[356114394,1741909955512,-500.0,0.00026303,3]
[356114395,1741909955521,-527.42253429,0.00026303,3]
[356114396,1741909955531,-1012.87,0.00026303,3]
[356114397,1741909955542,-500.0,0.00026303,3]
[356114398,1741909955553,-1069.23,0.00026303,3]
[356114399,1741909955562,-515.46834122,0.00026303,3]
[356114400,1741909955572,-605.55,0.00026303,3]
[356114401,1741909955581,-500.0,0.00026303,3]
[356114402,1741909955591,-1008.81,0.00026303,3]
[356114403,1741909955602,-866.31,0.00026303,3]
[356114404,1741909955611,-500.0,0.00026303,3]
[356114405,1741909955620,-500.0,0.00026303,3]
[356114406,1741909955630,-500.0,0.00026303,3]
[356114407,1741909955639,-500.0,0.00026303,3]
[356114408,1741909955648,-500.0,0.00026303,3]
[356114409,1741909955657,-1243.4,0.00026313,3]
[356114410,1741909955667,-4021.1,0.00026313,3]
[356114411,1741909955676,-1149.36,0.00026313,3]
[356114412,1741909955686,-686.34,0.00026313,3]
[356114413,1741909955695,-1365.3,0.00026313,3]
[356114414,1741909955704,-500.0,0.00026313,3]
[356114415,1741909955714,-658.04,0.00026313,3]
[356114416,1741909955723,-1356.05,0.00026313,3]
[356114417,1741909955732,-1000.0,0.00026313,3]
[356114418,1741909955741,-530.22,0.00026313,3]
[356114419,1741909955752,-517.5,0.00026313,3]
[356114420,1741909955761,-500.0,0.00026313,3]
[356114421,1741909955770,-240.87000001,0.00026313,3]
[356114422,1741909955780,-1735.89,0.00026313,3]
[356114423,1741909955790,-308.73,0.00026321,2]
[356114424,1741909955799,-718.97,0.00026321,3]
[356114425,1741909955808,-150.0,0.00026325,2]
[356114426,1741909955818,-151.0,0.0002633,7]
[356114427,1741909955827,-151.0,0.0002633,7]
[356114428,1741909955837,-516.499626,0.0002633,7]
[356114429,1741909955847,-516.499626,0.0002633,7]
[356114430,1741909955856,-500.0,0.0002633,3]
[356114431,1741909955866,-500.0,0.0002633,3]
[356114432,1741909955875,-620.08011569,0.0002633,3]
[356114433,1741909955884,-500.0,0.0002633,3]
[356114434,1741909955894,-500.0,0.0002633,3]
[356114435,1741909955903,-565.13990103,0.0002633,3]
[356114436,1741909955912,-500.0,0.0002633,3]
[356114437,1741909955921,-500.0,0.0002633,3]
[356114438,1741909955931,-500.0,0.0002633,3]
[356114439,1741909955940,-500.0,0.0002633,3]
[356114440,1741909955950,-500.0,0.0002633,3]
[356114441,1741909955959,-500.0,0.0002633,3]
[356114442,1741909955969,-313.03386627,0.0002633,3]
[356114443,1741909955978,-500.0,0.0002633,3]
[356114444,1741909955987,-500.0,0.0002633,3]
[356114445,1741909955996,-343.85432792,0.0002633,3]
[356114446,1741909956005,-500.0,0.0002633,3]
[356114447,1741909956015,-500.0,0.0002633,3]
[356114448,1741909956024,-554.82069628,0.0002633,3]
[356114449,1741909956033,-527.65681505,0.0002633,3]
[356114450,1741909956042,-500.0,0.0002633,3]
[356114451,1741909956052,-500.0,0.0002633,3]
[356114452,1741909956061,-500.0,0.0002633,3]
[356114453,1741909956070,-500.0,0.0002633,3]
[356114454,1741909956079,-602.43345804,0.0002633,3]
[356114455,1741909956088,-500.0,0.0002633,3]
[356114456,1741909956097,-540.99141521,0.0002633,3]
[356114457,1741909956106,-500.0,0.0002633,3]
[356114458,1741909956115,-500.0,0.0002633,3]
[356114459,1741909956124,-500.0,0.0002633,3]
[356114460,1741909956134,-500.0,0.0002633,3]
[356114461,1741909956143,-500.0,0.0002633,3]
[356114462,1741909956153,-500.0,0.0002633,3]
[356114463,1741909956163,-523.0597085,0.0002633,3]
[356114464,1741909956173,-500.0,0.0002633,3]
[356114465,1741909956182,-500.0,0.0002633,3]
[356114466,1741909956191,-500.0,0.0002633,3]
[356114467,1741909956201,-500.0,0.0002633,3]
[356114468,1741909956210,-587.0201413,0.0002633,3]
[356114469,1741909956219,-500.0,0.0002633,3]
[356114470,1741909956228,-580.1335468,0.0002633,3]
[356114471,1741909956238,-500.0,0.0002633,3]
[356114472,1741909956247,-500.0,0.0002633,3]
[356114473,1741909956256,-500.0,0.0002633,3]
[356114474,1741909956267,-404.96630774,0.0002633,3]
[356114475,1741909956276,-500.0,0.0002633,3]
[356114476,1741909956285,-879.64,0.0002633,3]
[356114477,1741909956294,-500.0,0.0002633,3]
[356114478,1741909956304,-500.0,0.0002633,3]
[356114479,1741909956314,-500.0,0.0002633,3]
[356114480,1741909956324,-535.9,0.0002633,3]
[356114481,1741909956333,-500.0,0.0002633,3]
[356114482,1741909956342,-621.59,0.0002633,3]
[356114483,1741909956351,-500.0,0.0002633,3]
[356114484,1741909956361,-548.81,0.0002633,3]
[356114485,1741909956370,-500.0,0.0002633,3]
[356114486,1741909956379,-4044.81,0.0002633,3]
[356114487,1741909956388,-500.0,0.0002633,3]
[356114488,1741909956397,-500.0,0.0002633,3]
[356114489,1741909956407,-1424.33,0.0002633,3]
[356114490,1741909956416,-575.01429221,0.0002633,3]
[356114491,1741909956425,-500.0,0.0002633,3]
[356114492,1741909956435,-164.20704566,0.0002633,3]
[356114493,1741909956444,-500.0,0.0002633,3]
[356114494,1741909956454,-500.0,0.0002633,3]
[356114495,1741909956464,-500.0,0.0002633,3]
[356114496,1741909956477,-1007.44,0.0002633,3]
[356114497,1741909956486,-500.0,0.0002633,3]
[356114498,1741909956496,-500.0,0.0002633,3]
[356114499,1741909956505,-500.0,0.0002633,3]
[356114500,1741909956516,-1472.58,0.0002633,3]
[356114501,1741909956526,-500.0,0.0002633,3]
[356114502,1741909956536,-500.0,0.0002633,3]
[356114503,1741909956545,-500.0,0.0002633,3]
[356114504,1741909956556,-1336.48,0.0002633,3]
[356114505,1741909956566,-500.0,0.0002633,3]
[356114506,1741909956575,-500.0,0.0002633,3]
[356114507,1741909956585,-500.0,0.0002633,3]
[356114508,1741909956595,-500.0,0.0002633,3]
[356114509,1741909956608,-1207.46,0.0002633,3]
[356114510,1741909956617,-1460.13,0.0002633,3]
[356114511,1741909956627,-1240.71,0.0002633,3]
[356114512,1741909956637,-500.0,0.0002633,2]
[356114513,1741909956646,-500.0,0.0002633,3]
[356114514,1741909956655,-500.0,0.0002633,3]
[356114515,1741909956664,-274.11052861,0.0002633,3]
[356114516,1741909956674,-561.31760322,0.0002633,3]
[356114517,1741909956683,-1560.68,0.0002633,3]
[356114518,1741909956692,-538.56121551,0.0002633,3]
[356114519,1741909956702,-606.8732011,0.0002633,3]
[356114520,1741909956712,-500.0,0.0002633,3]
[356114521,1741909956721,-500.0,0.0002633,3]
[356114522,1741909956730,-500.0,0.0002633,3]
[356114523,1741909956740,-500.0,0.0002633,3]
[356114524,1741909956750,-1715.23,0.0002633,3]
[356114525,1741909956759,-500.0,0.0002633,3]
[356114526,1741909956769,-500.0,0.0002633,3]
[356114527,1741909956778,-290.53532578,0.0002633,3]
[356114528,1741909956788,-500.0,0.0002633,3]
[356114529,1741909956798,-500.0,0.0002633,3]
[356114530,1741909956807,-528.49760401,0.0002633,3]
[356114531,1741909956817,-500.0,0.0002633,3]
[356114532,1741909956827,-500.0,0.0002633,3]
[356114533,1741909956837,-500.0,0.0002633,3]
[356114534,1741909956847,-500.0,0.0002633,3]
[356114535,1741909956857,-500.0,0.0002633,3]
[356114536,1741909956866,-866.31,0.0002633,3]
[356114537,1741909956877,-500.0,0.0002633,3]
[356114538,1741909956886,-528.68,0.0002633,3]
[356114539,1741909956896,-500.0,0.0002633,3]
[356114540,1741909956906,-500.0,0.0002633,3]
[356114541,1741909956916,-500.0,0.0002633,3]
[356114542,1741909956925,-597.53589276,0.0002633,3]
[356114543,1741909956935,-1801.77,0.0002633,3]
[356114544,1741909956946,-1282.18,0.0002633,3]
[356114545,1741909956956,-545.64546716,0.0002633,3]
[356114546,1741909956966,-500.0,0.0002633,3]
[356114547,1741909956976,-1126.34,0.0002633,3]
[356114548,1741909956987,-588.94650384,0.0002633,2]
[356114549,1741909956997,-521.16,0.0002633,3]
[356114550,1741909957007,-500.0,0.0002633,3]
[356114551,1741909957016,-1671.92,0.0002633,3]
[356114552,1741909957026,-775.14,0.0002633,3]
[356114553,1741909957036,-500.0,0.0002633,3]
[356114554,1741909957046,-552.77,0.0002633,3]
[356114555,1741909957056,-1037.45,0.0002633,3]
[356114556,1741909957065,-500.0,0.0002633,3]
[356114557,1741909957075,-500.0,0.0002633,3]
[356114558,1741909957084,-192.11088228,0.0002633,3]
[356114559,1741909957095,-630.13,0.0002633,3]
[356114560,1741909957104,-570.0,0.0002633,3]
[356114561,1741909957115,-500.0,0.0002633,3]
[356114562,1741909957124,-500.0,0.0002633,3]
[356114563,1741909957134,-500.0,0.0002633,3]
[356114564,1741909957144,-500.0,0.0002633,3]
[356114565,1741909957154,-500.0,0.0002633,3]
[356114566,1741909957167,-166.74001873,0.0002633,3]
[356114567,1741909957182,-500.0,0.0002633,3]
[356114568,1741909957195,-500.0,0.0002633,3]
[356114569,1741909957208,-774.3,0.0002633,3]
[356114570,1741909957222,-500.0,0.0002633,3]
[356114571,1741909957236,-500.0,0.0002633,3]
[356114572,1741909957252,-500.0,0.0002633,3]
[356114573,1741909957271,-1515.34,0.0002633,3]
[356114574,1741909957285,-929.37,0.0002633,3]
[356114575,1741909957297,-870.82,0.0002633,3]
[356114576,1741909957313,-592.52,0.0002633,3]
[356114577,1741909957327,-500.0,0.0002633,3]
[356114578,1741909957341,-531.66,0.0002633,3]
[356114579,1741909957356,-151.0,0.00026331,7]
[356114580,1741909957370,-151.0,0.00026331,7]
[356114581,1741909957385,-151.0,0.00026331,7]
[356114582,1741909957399,-151.0,0.00026331,7]
[356114583,1741909957414,-151.0,0.00026331,7]
[356114584,1741909957426,-151.0,0.00026331,7]
[356114585,1741909957440,-151.0,0.00026331,7]
[356114586,1741909957455,-151.0,0.00026331,7]
[356114587,1741909957472,-151.0,0.00026331,7]
[356114588,1741909957485,-151.0,0.00026331,7]
[356114589,1741909957496,-151.0,0.00026331,7]
[356114590,1741909957508,-151.0,0.00026331,7]
[356114591,1741909957525,-151.0,0.00026331,7]
[356114592,1741909957536,-516.499626,0.00026331,7]
[356114593,1741909957548,-516.499626,0.00026331,7]
[356114594,1741909957561,-516.499626,0.00026331,7]
[356114595,1741909957576,-516.499626,0.00026331,7]
[356114596,1741909957587,-3057.44,0.00026331,3]
[356114597,1741909957599,-500.0,0.00026331,3]
[356114598,1741909957616,-500.0,0.00026331,3]
[356114599,1741909957629,-500.0,0.00026331,3]
[356114600,1741909957641,-500.0,0.00026331,3]
[356114601,1741909957653,-500.0,0.00026331,3]
[356114602,1741909957666,-500.0,0.00026331,3]
[356114603,1741909957679,-627.17,0.00026331,3]
[356114604,1741909957692,-515.44,0.00026331,3]
[356114605,1741909957705,-500.0,0.00026331,3]
[356114606,1741909957718,-500.0,0.00026331,3]
[356114607,1741909957732,-909.42,0.00026331,3]
[356114608,1741909957745,-500.0,0.00026331,3]
[356114609,1741909957758,-767.58,0.00026331,3]
[356114610,1741909957771,-500.0,0.00026331,3]
[356114611,1741909957784,-500.0,0.00026331,3]
[356114612,1741909957796,-500.0,0.00026331,3]
[356114613,1741909957809,-500.0,0.00026331,3]
[356114614,1741909957822,-605.42,0.00026331,3]
[356114615,1741909957835,-500.0,0.00026331,3]
[356114616,1741909957848,-151.51392964,0.00026331,3]
[356114617,1741909957863,-500.0,0.00026331,3]
[356114618,1741909957876,-500.0,0.00026331,3]
[356114619,1741909957889,-670.75,0.00026331,3]
[356114620,1741909957902,-500.0,0.00026331,3]
[356114621,1741909957916,-500.0,0.00026331,3]
[356114622,1741909957929,-500.0,0.00026331,3]
[356114623,1741909957943,-500.0,0.00026331,3]
[356114624,1741909957956,-500.0,0.00026331,3]
[356114625,1741909957969,-500.0,0.00026331,3]
[356114626,1741909957982,-500.0,0.00026331,3]
[356114627,1741909957994,-500.0,0.00026331,3]
[356114628,1741909958008,-500.0,0.00026331,3]
[356114629,1741909958022,-500.0,0.00026331,3]
[356114630,1741909958036,-1567.35,0.00026331,3]
[356114631,1741909958049,-500.0,0.00026331,3]
[356114632,1741909958062,-500.0,0.00026331,3]
[356114633,1741909958076,-500.0,0.00026331,3]
[356114634,1741909958089,-500.0,0.00026331,3]
[356114635,1741909958102,-500.0,0.00026331,3]
[356114636,1741909958115,-500.0,0.00026331,3]
[356114637,1741909958128,-500.0,0.00026331,3]
[356114638,1741909958141,-644.21,0.00026331,3]
[356114639,1741909958154,-541.06297339,0.00026331,3]
[356114640,1741909958168,-500.0,0.00026331,3]
[356114641,1741909958180,-551.96790351,0.00026331,3]
[356114642,1741909958193,-1664.02,0.00026331,3]
[356114643,1741909958206,-500.0,0.00026331,3]
[356114644,1741909958219,-500.0,0.00026331,3]
[356114645,1741909958232,-500.0,0.00026331,3]
[356114646,1741909958245,-500.0,0.00026331,3]
[356114647,1741909958258,-500.0,0.00026331,3]
[356114648,1741909958271,-500.0,0.00026331,3]
[356114649,1741909958283,-968.14,0.00026331,3]
[356114650,1741909958296,-500.0,0.00026331,3]
[356114651,1741909958309,-1046.93,0.00026331,3]
[356114652,1741909958322,-773.75,0.00026331,3]
[356114653,1741909958334,-500.0,0.00026331,3]
[356114654,1741909958347,-500.0,0.00026331,3]
[356114655,1741909958361,-500.0,0.00026331,3]
[356114656,1741909958374,-500.0,0.00026331,3]
[356114657,1741909958387,-500.0,0.00026331,3]
[356114658,1741909958400,-500.0,0.00026331,3]
[356114659,1741909958412,-500.0,0.00026331,3]
[356114660,1741909958425,-798.27,0.00026331,3]
[356114661,1741909958438,-500.0,0.00026331,3]
[356114662,1741909958450,-500.0,0.00026331,3]
[356114663,1741909958464,-680.76,0.00026331,3]
[356114664,1741909958480,-500.0,0.00026331,3]
[356114665,1741909958492,-500.0,0.00026331,3]
[356114666,1741909958506,-500.0,0.00026331,3]
[356114667,1741909958520,-500.0,0.00026331,3]
[356114668,1741909958533,-500.0,0.00026331,3]
[356114669,1741909958546,-500.0,0.00026331,3]
[356114670,1741909958559,-500.0,0.00026331,3]
[356114671,1741909958572,-500.0,0.00026331,3]
[356114672,1741909958583,-500.0,0.00026331,3]
[356114673,1741909958596,-500.0,0.00026331,3]
[356114674,1741909958608,-636.13143776,0.00026331,3]
[356114675,1741909958619,-500.0,0.00026331,3]
[356114676,1741909958631,-500.0,0.00026331,3]
[356114677,1741909958641,-525.02754027,0.00026331,3]
[356114678,1741909958653,-500.0,0.00026331,3]
[356114679,1741909958664,-523.64127425,0.00026331,3]
[356114680,1741909958676,-500.0,0.00026331,3]
[356114681,1741909958688,-550.26,0.00026331,3]
[356114682,1741909958700,-500.0,0.00026331,3]
[356114683,1741909958712,-500.0,0.00026331,3]
[356114684,1741909958724,-500.0,0.00026331,3]
[356114685,1741909958736,-748.01,0.00026331,3]
[356114686,1741909958748,-500.0,0.00026331,3]
[356114687,1741909958761,-500.0,0.00026331,3]
[356114688,1741909958772,-854.97,0.00026331,3]
[356114689,1741909958785,-500.0,0.00026331,3]
[356114690,1741909958796,-546.26586681,0.00026331,3]
[356114691,1741909958808,-500.0,0.00026331,3]
[356114692,1741909958820,-500.0,0.00026331,3]
[356114693,1741909958832,-1135.48,0.00026331,3]
[356114694,1741909958844,-500.0,0.00026331,3]
[356114695,1741909958856,-500.0,0.00026331,3]
[356114696,1741909958868,-500.0,0.00026331,3]
[356114697,1741909958879,-500.0,0.00026331,3]
[356114698,1741909958891,-500.0,0.00026331,3]
[356114699,1741909958902,-500.0,0.00026331,3]
[356114700,1741909958914,-500.0,0.00026331,3]
[356114701,1741909958926,-539.91,0.00026331,3]
[356114702,1741909958938,-500.0,0.00026331,3]
[356114703,1741909958949,-500.0,0.00026331,3]
[356114704,1741909958961,-500.0,0.00026331,3]
[356114705,1741909958973,-500.0,0.00026331,3]
[356114706,1741909958984,-500.0,0.00026331,3]
[356114707,1741909958996,-500.0,0.00026331,3]
[356114708,1741909959007,-500.0,0.00026331,3]
[356114709,1741909959018,-1590.08,0.00026331,3]
[356114710,1741909959030,-500.0,0.00026331,3]
[356114711,1741909959041,-500.0,0.00026331,3]
[356114712,1741909959052,-521.95,0.00026331,3]
[356114713,1741909959063,-1077.24,0.00026331,3]
[356114714,1741909959074,-500.0,0.00026331,3]
[356114715,1741909959086,-1570.33,0.00026331,3]
[356114716,1741909959098,-500.0,0.00026331,3]
[356114717,1741909959108,-500.0,0.00026331,3]
[356114718,1741909959120,-500.0,0.00026331,3]
[356114719,1741909959130,-500.0,0.00026331,3]
[356114720,1741909959142,-1757.22,0.00026331,3]
[356114721,1741909959153,-500.0,0.00026331,3]
[356114722,1741909959164,-500.0,0.00026331,3]
[356114723,1741909959176,-500.0,0.00026331,3]
[356114724,1741909959187,-500.0,0.00026331,3]
[356114725,1741909959198,-500.0,0.00026331,3]
[356114726,1741909959210,-501.8,0.00026331,3]
[356114727,1741909959220,-500.0,0.00026331,3]
[356114728,1741909959232,-1962.2,0.00026331,3]
[356114729,1741909959243,-500.0,0.00026331,3]
[356114730,1741909959255,-500.0,0.00026331,3]
[356114731,1741909959268,-500.0,0.00026331,3]
[356114732,1741909959279,-500.0,0.00026331,3]
[356114733,1741909959290,-500.0,0.00026331,3]
[356114734,1741909959302,-1313.89,0.00026331,3]
[356114735,1741909959314,-549.97963441,0.00026331,3]
[356114736,1741909959325,-500.0,0.00026331,3]
[356114737,1741909959336,-500.0,0.00026331,3]
[356114738,1741909959347,-500.0,0.00026331,3]
[356114739,1741909959357,-500.0,0.00026331,3]
[356114740,1741909959368,-500.0,0.00026331,3]
[356114741,1741909959379,-500.0,0.00026331,3]
[356114742,1741909959390,-500.0,0.00026331,3]
[356114743,1741909959401,-1156.75,0.00026331,3]
[356114744,1741909959412,-500.0,0.00026331,3]
[356114745,1741909959423,-500.0,0.00026331,3]
[356114746,1741909959433,-500.0,0.00026331,3]
[356114747,1741909959444,-500.0,0.00026331,3]
[356114748,1741909959455,-500.0,0.00026331,3]
[356114749,1741909959467,-827.88,0.00026331,3]
[356114750,1741909959479,-500.0,0.00026331,3]
[356114751,1741909959492,-500.0,0.00026331,3]
[356114752,1741909959503,-533.7995867,0.00026331,3]
[356114753,1741909959515,-500.0,0.00026331,3]
[356114754,1741909959526,-500.0,0.00026331,3]
[356114755,1741909959537,-895.24,0.00026331,3]
[356114756,1741909959548,-500.0,0.00026331,3]
[356114757,1741909959561,-558.41157832,0.00026331,3]
[356114758,1741909959572,-500.0,0.00026331,3]
[356114759,1741909959583,-500.0,0.00026331,3]
[356114760,1741909959595,-1012.87,0.00026331,3]
[356114761,1741909959606,-500.0,0.00026331,3]
[356114762,1741909959618,-1069.23,0.00026331,3]
[356114763,1741909959629,-605.55,0.00026331,3]
[356114764,1741909959641,-500.0,0.00026331,3]
[356114765,1741909959652,-1008.81,0.00026331,3]
[356114766,1741909959663,-866.31,0.00026331,3]
[356114767,1741909959674,-500.0,0.00026331,3]
[356114768,1741909959684,-500.0,0.00026331,3]
[356114769,1741909959695,-500.0,0.00026331,3]
[356114770,1741909959707,-500.0,0.00026331,3]
[356114771,1741909959719,-1243.4,0.0002634,3]
[356114772,1741909959730,-4021.1,0.0002634,3]
[356114773,1741909959741,-1149.36,0.0002634,3]
[356114774,1741909959752,-686.34,0.0002634,3]
[356114775,1741909959764,-1365.3,0.0002634,3]
[356114776,1741909959775,-500.0,0.0002634,3]
[356114777,1741909959786,-658.04,0.0002634,3]
[356114778,1741909959797,-1356.05,0.0002634,3]
[356114779,1741909959808,-1000.0,0.0002634,3]
[356114780,1741909959819,-530.22,0.0002634,3]
[356114781,1741909959830,-517.5,0.0002634,3]
[356114782,1741909959842,-500.0,0.0002634,3]
[356114783,1741909959852,-1735.89,0.0002634,3]
[356114784,1741909959864,-151.0,0.00026346,7]
[356114785,1741909959875,-199.642399,0.00026346,7]
[356114786,1741909959886,-516.499626,0.00026346,7]
[356114787,1741909959897,-516.499626,0.00026346,7]
[356114788,1741909959907,-151.0,0.00026348,7]
[356114789,1741909959918,-151.0,0.00026348,7]
[356114790,1741909959930,-151.0,0.00026348,7]
[356114791,1741909959941,-151.0,0.00026348,7]
[356114792,1741909959952,-151.0,0.00026348,7]
[356114793,1741909959963,-151.0,0.00026348,7]
[356114794,1741909959974,-151.0,0.00026348,7]
[356114795,1741909959985,-151.0,0.00026348,7]
[356114796,1741909959997,-516.499626,0.00026348,7]
[356114797,1741909960008,-516.499622,0.00026348,7]
[356114798,1741909960019,-718.97,0.00026349,3]
[356114799,1741909960031,-434.845969,0.00026355,7]
[356114800,1741909960042,-151.0,0.00026355,7]
[356114801,1741909960053,-151.0,0.00026355,7]
[356114802,1741909960065,-151.0,0.00026355,7]
[356114803,1741909960076,-151.0,0.00026355,7]
[356114804,1741909960088,-151.0,0.00026355,7]
[356114805,1741909960099,-151.0,0.00026355,7]
[356114806,1741909960112,-151.0,0.00026355,7]
[356114807,1741909960123,-151.0,0.00026355,7]
[356114808,1741909960135,-151.0,0.00026355,7]
[356114809,1741909960146,-151.0,0.00026355,7]
[356114810,1741909960158,-151.0,0.00026355,7]
[356114811,1741909960169,-289.17808138,0.00026355,3]
[356114812,1741909960181,-434.845969,0.00026356,7]
[356114813,1741909960192,-434.845969,0.00026356,7]
[356114814,1741909960203,-151.0,0.00026356,7]
[356114815,1741909960214,-151.0,0.00026356,7]
[356114816,1741909960225,-165.928807,0.00026356,7]
[356114817,1741909960237,-151.0,0.00026356,7]
[356114818,1741909960248,-151.0,0.00026356,7]
[356114819,1741909960262,-151.0,0.00026356,7]
[356114820,1741909960273,-151.0,0.00026356,7]
[356114821,1741909960284,-151.0,0.00026356,7]
[356114822,1741909960296,-151.0,0.00026356,7]
[356114823,1741909960308,-151.0,0.00026356,7]
[356114824,1741909960319,-222.888354,0.00026356,7]
[356114825,1741909960331,-208.185732,0.00026356,7]
[356114826,1741909960341,-500.0,0.00026356,3]
[356114827,1741909960353,-500.0,0.00026356,3]
[356114828,1741909960363,-619.96,0.00026356,3]
[356114829,1741909960375,-599.39,0.00026356,3]
[356114830,1741909960386,-1580.05,0.00026356,3]
[356114831,1741909960397,-568.45,0.00026356,3]
[356114832,1741909960408,-500.0,0.00026356,3]
[356114833,1741909960420,-596.06,0.00026356,3]
[356114834,1741909960431,-500.0,0.00026356,3]
[356114835,1741909960442,-575.02,0.00026356,3]
[356114836,1741909960454,-500.0,0.00026356,3]
[356114837,1741909960469,-500.0,0.00026356,3]
[356114838,1741909960480,-500.0,0.00026356,3]
[356114839,1741909960491,-500.0,0.00026356,3]
[356114840,1741909960503,-500.0,0.00026356,3]
[356114841,1741909960515,-614.09,0.00026356,3]
[356114842,1741909960527,-1905.32,0.00026356,3]
[356114843,1741909960539,-500.0,0.00026356,3]
[356114844,1741909960550,-500.0,0.00026356,3]
[356114845,1741909960563,-505.01,0.00026356,3]
[356114846,1741909960574,-500.0,0.00026356,3]
[356114847,1741909960585,-1834.44,0.00026356,3]
[356114848,1741909960596,-500.0,0.00026356,3]
[356114849,1741909960607,-1115.1,0.00026356,3]
[356114850,1741909960620,-500.0,0.00026356,3]
[356114851,1741909960633,-1673.6,0.00026356,3]
[356114852,1741909960649,-500.0,0.00026356,3]
[356114853,1741909960660,-1557.42,0.00026356,3]
[356114854,1741909960671,-512.73,0.00026356,3]
[356114855,1741909960682,-808.39,0.00026356,3]
[356114856,1741909960693,-500.0,0.00026356,3]
[356114857,1741909960704,-500.0,0.00026356,3]
[356114858,1741909960715,-500.0,0.00026356,3]
[356114859,1741909960726,-500.0,0.00026356,3]
[356114860,1741909960737,-1409.73,0.00026356,3]
[356114861,1741909960748,-586.53,0.00026356,3]
[356114862,1741909960759,-649.95,0.00026356,3]
[356114863,1741909960771,-500.0,0.00026356,3]
[356114864,1741909960783,-708.03,0.00026356,3]
[356114865,1741909960794,-151.0,0.00026357,7]
[356114866,1741909960805,-179.676035,0.00026357,7]
[356114867,1741909960817,-151.0,0.00026357,7]
[356114868,1741909960831,-151.0,0.00026357,7]
[356114869,1741909960843,-151.0,0.00026357,7]
[356114870,1741909960856,-151.0,0.00026357,7]
[356114871,1741909960869,-151.0,0.00026357,7]
[356114872,1741909960881,-151.0,0.00026357,7]
[356114873,1741909960893,-151.0,0.00026357,7]
[356114874,1741909960907,-208.185732,0.00026357,7]
[356114875,1741909960920,-208.185732,0.00026357,7]
[356114876,1741909960932,-500.0,0.00026357,3]
[356114877,1741909960945,-500.0,0.00026357,3]
[356114878,1741909960957,-500.0,0.00026357,3]
[356114879,1741909960970,-556.63840408,0.00026357,3]
[356114880,1741909960983,-531.23709183,0.00026357,3]
[356114881,1741909960996,-343.65679705,0.00026357,3]
[356114882,1741909961008,-500.0,0.00026357,3]
[356114883,1741909961021,-500.0,0.00026357,3]
[356114884,1741909961033,-500.0,0.00026357,3]
[356114885,1741909961046,-532.58527162,0.00026357,3]
[356114886,1741909961059,-500.0,0.00026357,3]
[356114887,1741909961072,-500.0,0.00026357,3]